Cogmind - Beta 13 @@@ ROGUE MODE // 2024.05.18 @ 16:21:08 Player: Bace Troncons Result: Destroyed by S-10 Pest with Light Assault Rifle Performance ------------- Evolutions (0) 0 Regions Visited (2) 400 Robots Destroyed (24) 120 Value Destroyed (636) 636 Prototype IDs (12) 240 Alien Tech Used (0) 0 Bonus (0) 0 TOTAL SCORE: 1396 Bonus ------- None Cogmind --------- Core Integrity 0/250 Matter 200/300 Energy 100/100 System Corruption 2% Temperature Cool (0) Movement Core (450) Ox8 Location -10/Subcaves Parts ------- > --- POWER (1) -------- (None) > --- PROPULSION (2) --- (None) > --- UTILITY (2) ------ Scrap Shield > --- WEAPON (2) ------- Subdweller Machine Gun Battle Cannon > --- INVENTORY (5) ---- Arachnoskeleton Hardened Light Armor Plating Light Cannon Peak State ------------ > --- POWER ------------ (None) > --- PROPULSION ------- (None) > --- UTILITY ---------- High-capacity Storage Unit Hardened Light Armor Plating > --- WEAPON ----------- Subdweller Machine Gun Battle Cannon > --- INVENTORY -------- Arachnoskeleton Signal Interpreter Seismic Detector Targeting Computer Weapon Shielding Weapon Shielding Hardened Light Armor Plating Hardened Light Armor Plating Hardened Light Armor Plating Light Cannon Light Cannon Light Cannon Scrap Shield Fragment Scrap Shield Fragment Scrap Shield Fragment [Rating: 11] Favorites ----------- Power Ion Engine Engine Ion Engine Propulsion Light Treads Treads Light Treads Utility High-capacity Storage Unit Device Seismic Detector Storage High-capacity Storage Unit Protection Hardened Light Armor Plating Weapon Light Cannon Energy Gun EM Pulse Gun Ballistic Gun Subdweller Machine Gun Ballistic Cannon Light Cannon Build | -11 -10 -10 ------- Run | Yrd Mat Sub Slots Evolved . | . . . Power . | . . . Propulsion . | . . . Utility . | . . . Weapon . | . . . Parts Attached 25 | 7 9 9 Power 5 | 1 1 3 Engine 5 | 1 1 3 Core . | . . . Reactor . | . . . Propulsion 4 | 2 2 . Treads 4 | 2 2 . Leg . | . . . Wheel . | . . . Hover . | . . . Flight . | . . . Utility 6 | 1 4 1 Device 1 | . 1 . Storage 2 | 1 1 . Processor . | . . . Hackware . | . . . Protection 3 | . 2 1 Artifact . | . . . Weapon 10 | 3 2 5 Energy Gun 1 | 1 . . Energy Cannon . | . . . Ballistic Gun 3 | 2 . 1 Ballistic Cannon 6 | . 2 4 Launcher . | . . . Special Weapon . | . . . Impact Weapon . | . . . Slashing Weapon . | . . . Piercing Weapon . | . . . Special Melee Weapon . | . . . Unidentified Prototypes . | . . . Parts Lost 5 | . 1 4 Power 2 | . 1 1 Propulsion 2 | . . 2 Utility . | . . . Weapon 1 | . . 1 Highest Loss Streak 3 | . 1 3 To Critical Strikes . | . . . Average Slot Usage (%) 71 | . 85 64 Engine 5 | . 7 4 Treads 11 | . 28 3 Storage 13 | . 14 13 Protection 13 | . 11 14 Ballistic Gun 6 | . 4 7 Ballistic Cannon 18 | . 16 20 Naked Turns . | . . . Heaviest Build 56 | 11 56 56 Greatest Support 40 | 40 40 40 Greatest Overweight (x) 18 | 1 2 18 Average Overweight (x) 6 | . . 10 Largest Inventory Capacity 20 | 8 20 20 Average Capacity 19 | 7 19 19 Most Carried 17 | 4 14 17 Average Carried 13 | 2 11 14 Final Capacity 20 | 8 20 5 Final Carried 14 | 3 14 5 Class Distribution -------------------- 100% | Mutant Dominant Class ---------------- Mutant | -10/Materials Mutant | -10/Subcaves Resources | -11 -10 -10 ----------- Run | Yrd Mat Sub Matter Collected 985 | 217 393 375 Remotely . | . . . Salvage Created 603 | . 533 70 Parts 39 | . 29 10 Haulers Intercepted 2 | . 2 . Recyclers Shooed . | . . . Parts Field Recycled . | . . . Retrieved Matter . | . . . Parts Self-Destructed 4 | . . 4 Prevented . | . . . Kills | -11 -10 -10 ------- Run | Yrd Mat Sub Combat Hostiles Destroyed 18 | . 11 7 Guns 6 | . 6 . Cannons 12 | . 5 7 Classes Destroyed 7 | . 6 1 Hauler 2 | . 2 . Recycler 1 | . 1 . Operator 1 | . 1 . Watcher 2 | . 2 . Swarmer 4 | . 3 1 Grunt 8 | . 8 . Subdweller 6 | . . 6 Best Kill Streak 4 | . 4 2 Combat Bots Only 3 | . 3 2 Max Kills in Single Turn 1 | . 1 1 Gunslinging . | . . . Exploded . | . . . Melee . | . . . Uniques/NPCs Destroyed . | . . . Combat | -11 -10 -10 -------- Run | Yrd Mat Sub Hostile Shots Fired 169 | . 78 91 Missed 52 | . 24 28 Damage Taken 1642 | . 634 1008 Core 256 | . 111 145 Absorbed by Shields . | . . . Core Remaining (%) 100 | 100 . . Volleys Fired 94 | . 64 30 Largest 2 | . 2 2 Hottest 74 | . 70 74 Shots Fired 192 | . 130 62 Gun 91 | . 90 1 Cannon 101 | . 40 61 Launcher . | . . . Special . | . . . Kinetic 192 | . 130 62 Thermal . | . . . Explosive . | . . . Electromagnetic . | . . . Robot Hit Streak 17 | . 17 9 Robot Miss Streak 5 | . 5 3 Penetration Max . | . . . Secondary Targets 1 | . 1 . Max Gunslinging Chain 1 | . 1 . Shots Hit Robots 131 | . 89 42 Core Hits 41 | . 30 11 Critical Kills 1 | . 1 . Critical Parts Destroyed . | . . . Critical Strikes 3 | . 2 1 Destroy 1 | . 1 . Blast 2 | . 1 1 Melee Attacks . | . . . Impact . | . . . Slashing . | . . . Piercing . | . . . Sneak Attacks . | . . . Combat Hostiles . | . . . Follow-up Attacks . | . . . Damage Inflicted 1671 | . 968 703 Guns 596 | . 596 . Cannons 1075 | . 372 703 Explosions . | . . . Melee . | . . . Ramming . | . . . Kinetic 1671 | . 968 703 Thermal . | . . . Explosive . | . . . Electromagnetic . | . . . Impact . | . . . Slashing . | . . . Piercing . | . . . Highest Corruption 2 | . 2 2 Average Corruption 2 | . 2 2 Corruption Purged . | . . . Corruption Blocked . | . . . Effects 101 | . 19 82 Message Errors 34 | . 4 30 Matter Fused 23 | . 5 18 Heat Flow Errors 11 | . 3 8 Energy Discharges 10 | . 4 6 Parts Fused 1 | . 1 . Data Loss (minor) 11 | . . 11 Data Loss (major) 5 | . . 5 Misfires 4 | . 2 2 Alerts 2 | . . 2 Overload Shots . | . . . Overflow Damage 11 | . 3 8 Projectiles 11 | . 3 8 Explosions . | . . . Melee . | . . . Knockbacks 11 | . 7 4 Impact . | . . . Kinetic 10 | . 6 4 Secondary 1 | . 1 . Self-Inflicted Damage . | . . . Shots . | . . . Rammed . | . . . Targets Rammed . | . . . Kicked . | . . . Crushed . | . . . Highest Temperature 279 | . 279 262 Average Temperature 61 | . 43 117 Received Heat Transfer 435 | . 315 120 Siege Activations . | . . . Robots Corrupted . | . . . Combat Hostiles . | . . . Parts Fried . | . . . Impact Corruptions . | . . . Robots Melted . | . . . Combat Hostiles . | . . . Parts Melted . | . . . Heat Transferred . | . . . Parts Sabotaged . | . . . Parts Stolen . | . . . Parts Stripped . | . . . Power Chain Reactions . | . . . Alert | -11 -10 -10 ------- Run | Yrd Mat Sub Peak Influence 221 | . 221 . Initial . | . . . Average 28 | . 28 . Maximum Alert Level 1 | . 1 . Low Security (%) 98 | 100 98 . Level 1 1 | . 1 . Level 2 . | . . . Level 3 . | . . . Level 4 . | . . . Level 5 . | . . . High Security . | . . . Max Security . | . . . Squads Dispatched 1 | . 1 . Investigation . | . . . Extermination . | . . . Reinforcement 1 | . 1 . Assault . | . . . Garrison . | . . . Intercept . | . . . Searches Triggered . | . . . Construction Impeded . | . . . Haulers Reinforced . | . . . Active Scanning Responses . | . . . Cargo Convoy Interrupts . | . . . Stealth | -11 -10 -10 --------- Run | Yrd Mat Sub Distress Signals 2 | . 2 . Communications Jammed . | . . . Distress Signals . | . . . Times Spotted 31 | . 21 10 Peak Tracking Total 4 | . 4 2 Tactical Retreats 1 | . . 1 Traps | -11 -10 -10 ------- Run | Yrd Mat Sub Traps Triggered 1 | . 1 . Indirectly . | . . . Trap Hack Attempts . | . . . Triggered . | . . . Disarmed . | . . . Reprogrammed . | . . . Reused . | . . . Traps Extracted . | . . . Installed . | . . . Triggered . | . . . Machines | -11 -10 -10 ---------- Run | Yrd Mat Sub Machines Disabled 1 | . . 1 Max in Single Turn 1 | . . 1 Machines Repaired . | . . . Machines Dismantled . | . . . Machines Sabotaged . | . . . Overloaded Fab Kills . | . . . Hacking | -11 -10 -10 --------- Run | Yrd Mat Sub Machines Accessed 7 | . 6 1 Terminals 4 | . 4 . Fabricators . | . . . Repair Stations 1 | . 1 . Recycling Units 1 | . 1 . Scanalyzers . | . . . Garrison Access . | . . . Total Hacks 14 | . 13 1 Successful 5 | . 4 1 Failed 9 | . 9 . Catastrophic . | . . . Database Lockouts . | . . . Manual . | . . . Terminals 9 | . 9 . Fabricators . | . . . Repair Stations 2 | . 2 . Recycling Units 2 | . 2 . Scanalyzers . | . . . Garrison Access . | . . . Terminal Hacks 4 | . 3 1 Robot Analysis 1 | . 1 . Prototype ID Bank 1 | . 1 . Hauler Manifests 1 | . 1 . Derelict Proto ID Bank 1 | . . 1 Fabricator Hacks . | . . . Repair Station Hacks 1 | . 1 . Scan Component 1 | . 1 . Recycling Unit Hacks . | . . . Scanalyzer . | . . . Garrison Access Hacks . | . . . Unauthorized Hacks . | . . . Terminals . | . . . Fabricators . | . . . Repair Stations . | . . . Recycling Units . | . . . Scanalyzers . | . . . Garrison Access . | . . . Data Cores Recovered . | . . . Used . | . . . Hacking Detections 6 | . 6 . Full Trace Events . | . . . Feedback Events . | . . . Feedback Blocked . | . . . Robot Schematics Acquired . | . . . Robots Built . | . . . Authchips . | . . . Time . | . . . Total Robot Build Rating . | . . . Part Schematics Acquired . | . . . Parts Built . | . . . Authchips . | . . . Time . | . . . Total Part Build Rating . | . . . Parts Repaired . | . . . Time . | . . . Parts Recycled . | . . . Recycled Matter . | . . . Retrieved Matter . | . . . Retrieved Components . | . . . Parts Scanalyzed . | . . . Part Schematics Acquired . | . . . Parts Damaged . | . . . Bothacking | -11 -10 -10 ------------ Run | Yrd Mat Sub Used RIF Installer . | . . . Robots Hacked . | . . . Non-combat . | . . . Combat . | . . . Robot Hacks Applied . | . . . Relay Couplers Released . | . . . Fabnet Peak Effective % . | . . . Robots Rewired . | . . . Allies Hacked . | . . . Hacks Repelled . | . . . Allies | -11 -10 -10 -------- Run | Yrd Mat Sub Total Allies . | . . . Largest Group . | . . . Highest-Rated Group . | . . . Highest-Rated Ally . | . . . Total Orders . | . . . Ally Attacks . | . . . Total Damage . | . . . Kills . | . . . Allies Corrupted . | . . . Allies Melted . | . . . Intel | -11 -10 -10 ------- Run | Yrd Mat Sub Robot Analysis Total 1 | . 1 . Derelict Logs Recovered 1 | . . 1 Drone Launches . | . . . Drone Recoveries . | . . . Exploration | -11 -10 -10 ------------- Run | Yrd Mat Sub Turns Passed 8875 | 74 2859 5942 Spaces Moved 1630 | 42 685 903 Core 586 | 8 . 578 Treads 1044 | 34 685 325 Legs . | . . . Wheels . | . . . Hover . | . . . Flight . | . . . Fastest Speed 50 | 50 160 240 Average Speed 460 | 143 237 644 Slowest Speed 950 | 160 320 950 Overloaded Moves . | . . . Propulsion Burnouts . | . . . Robots Hopped . | . . . Cave-ins Triggered . | . . . Exploration Rate (%) 45 | 3 94 39 Regions Visited 2 Branch Regions 1 Pre-discovered Areas . | . . . Known Exits Taken . | . . . Unknown Exits Taken 2 | 1 1 . Scrap Searched 2 | . . 2 Spaces Dug . | . . . Terrain Destroyed . | . . . Melee . | . . . Projectile . | . . . AOE . | . . . Terrain Rammed . | . . . Walls Destroyed . | . . . Machines Disabled . | . . . Actions | -11 -10 -10 --------- Run | Yrd Mat Sub Total 2829 | 53 1812 964 Wait 1035 | . 1026 9 Move 1628 | 41 684 903 Hop . | . . . Pick Up 19 | 3 12 4 Fast Attach 17 | 7 5 5 Attach 5 | . 1 4 Detach 13 | 1 7 5 Swap 3 | . 3 . Drop 15 | 1 10 4 Fire 94 | . 64 30 Melee . | . . . Ram . | . . . Kick . | . . . Crush . | . . . Escape Stasis . | . . . Rewire . | . . . Trap . | . . . Miscellaneous . | . . . Route ------- -11/Scrapyard -10/Materials (discovered 5 exits: [*Mat x3] / [*Min] / *Sub) -10/Subcaves (discovered 2 exits: [*Mat x2]) History --------- Turn | Location | Event 10 | -11/Scrapyard | Discovered new exit (range 16) 75 | -11/Scrapyard | Entered Materials 306 | -10/Materials | Build established: Mutant 481 | -10/Materials | Discovered new exit (range 15) 741 | -10/Materials | Discovered new exit (range 14) 1010 | -10/Materials | Discovered new exit (range 4) 1558 | -10/Materials | Discovered new exit (range 14) 2890 | -10/Materials | Discovered new exit (range 9) 2934 | -10/Materials | Entered Subcaves 2948 | -10/Subcaves | Learned 2 Materials zone layouts 3212 | -10/Subcaves | Discovered new exit (range 13) 3567 | -10/Subcaves | Core integrity fell below 50% 3774 | -10/Subcaves | Discovered new exit (range 15) 3827 | -10/Subcaves | Core integrity fell below 20% 3861 | -10/Subcaves | Lost 3 parts (1p1n1w) 5313 | -10/Subcaves | Visited 4L-MR0's lab 5408 | -10/Subcaves | Found Arachnoskeleton 8876 | -10/Subcaves | Destroyed by S-10 Pest with Light Assault Rifle Last Messages --------------- emitted. 08748_ Subatomizers dissect the Seismic Detector. 08756_ S-10 Pest destroyed. 08756_ Destroyed Flight Unit. 08756_ S-10 Pest destroyed. 08759_ Acquired 20 matter. 08763_ Subatomizers dissect the Seismic Detector. 08768_ Flight Unit fries itself beyond repair. 08768_ Acquired 13 matter. 08770_ System corrupted: Component data lost. 08773_ Lgt. Assault Rifle fries itself beyond repair. 08774_ Lgt. Ion Engine fries itself beyond repair. 08774_ Lgt. Assault Rifle fries itself beyond repair. 08782_ Acquired 1 matter. 08863_ V# S&Q/>30K UIT0E,RWS Map ----- +----------------------------------------------------+ | ?????????????????????????????????????????????????? | | ?????????????????????????????????????????????????? | | ?????????????????????????????????????????????????? | | ?????????????????????????????????????????????????? | | ?????????????????????????????????????????????????? | | ?????????????????????????????????????????????????? | | ?????????????????????????????????????????????????? | | ?????????????????????????????????????????????????? | | ?????????????????????????????????????????????????? | | ?????????????????????????????????????????????????? | | ?????????????????#???????????????????????????????? | | ????????????????## ??????????????????????????????? | | ????????????????# ?????????????????????????# ??? | | ???????????????## #???????????????????????? ^ ?? | | ???????????????? #??????????????????????? ?? | | ????????????????? ?????????????????????## ?? | | ????????????????## ?????????????????????# ?? | | ????????????????# ????????????????????? ?? | | ????????????????## ???????????????????? ??? | | ???????????????## ??????????????# ???# ??? | | ??????????????## ?????????????? ??## ??? | | ??????????????# #######??????## ??# ??? | | ???????? ## ## ##?????# ??# ???? | | ????????# #?????# ?## ???? | | ????????# ######## ?# ^^ ???? | | ???????# ### s @ # # # ## ### ##??? | | ?????????????### s ### #??? | | ???????????????# # #### # ### #???? | | ???????????????# ## ##??## ## # ## ##??? | | ???????????????# ??##?????## #????# ##?? | | ???????????????# ???????????# #????## ### | | ??????????????? ????????????# #????## ## | | ?????????????? ?????????????# #??### | | ????????????? ?????????????## #### !! | | ????????????#??????????????# # # !!!& # ## | | ???????????????????????????## ]& !! #### | | ????????????????????????????# ####!] ### | | ??????????????????????# ### ##??#& ### | | ??????????????????????# ###???# ##?# | | ?????????????????????# #????####??#### | | ????????????????????# #????????????? | | ??????????????????? #???????????? | | ??????????????????? ##### #??????????? | | ????????????????????# ?????# #??????????? | | ????????????????????##??????#### ##??????????? | | ???????????????????????????????#######???????????? | | ?????????????????????????????????????????????????? | | ?????????????????????????????????????????????????? | | ?????????????????????????????????????????????????? | | ?????????????????????????????????????????????????? | +----------------------------------------------------+ Best States ------------- Heat Dissipation 25 Energy Generation 15 Energy Capacity 250 Matter Stores 300 Matter Capacity 300 Sight Range 16 Terrain Scan Density 10 Armor Coverage 800 Weapon Shielding 33 Evasion (%) 40 Recoil Reduction 2 Item Schematics ----------------- None Robot Schematics ------------------ None Fabricated ------------ Nothing Alien Tech Used ----------------- None Achievements -------------- None Challenges ------------ None Game ------ Seed ComponentActuatorShearcannon Manual? 0 Play Time 00:17:30 Cumulative 79.8 hours Start 2024.05.18 @ 15:59:38 End 2024.05.18 @ 16:21:08 Sessions 1 Manual Loads 0 Difficulty Rogue Special Mode None Game No. 124 Rogue 124 Adventurer 0 Explorer 0 Win Type - Total 1 Types 1/0/0/0/0/0/0/0/0 Lore% 39 Gallery% 43 Achievement% 32 Wizard Run 0 Options --------- Layout 1 ASCII 0 Keyboard 1 Movement Numpad Keybinds 0 Fullscreen 1 Font 24/Smallcaps Map View 50x35 Zoom Use 0% Tactical HUD 1 Map Filters NONE Filters NONE Steam 1 RUN: 9770307a-2b0d-4f71-a2d3-08c1e38dd7dd